bitfinex-derivatives/quotes_SOLF0:USTF0_20250520
["timestamp","ask_amount","ask_price","bid_price","bid_amount"]
[1747729199775,5.9921,166.84,166.81,64.80007349]
[1747729200280,5.9921,166.84,166.82,5.9926]
[1747729200477,0.04027292,166.85,166.81,64.80007349]
[1747729200678,64.84027292,166.85,166.81,7.349e-05]
[1747729201074,5.9926,166.82,166.81,7.349e-05]
[1747729201986,0.04027292,166.85,166.81,7.349e-05]
[1747729203378,0.04027292,166.85,166.84,5.9919]
[1747729204884,0.04027292,166.85,166.82,5.9925]
[1747729205081,0.04027292,166.85,166.81,7.349e-05]
[1747729205686,5.9924,166.83,166.81,7.349e-05]
[1747729205985,0.04027292,166.85,166.81,7.349e-05]
[1747729206689,5.9923,166.83,166.81,7.349e-05]
[1747729207484,0.04027292,166.85,166.81,7.349e-05]
[1747729207985,0.04027292,166.85,166.83,5.992]
[1747729208986,0.04027292,166.85,166.84,5.9919]
[1747729209279,0.04027292,166.85,166.81,7.349e-05]
[1747729209485,5.9921,166.84,166.81,5.99287349]
[1747729209884,5.9925,166.83,166.81,7.349e-05]
[1747729210081,0.04027292,166.85,166.81,7.349e-05]
[1747729210586,5.9926,166.82,166.81,7.349e-05]
[1747729210882,0.04027292,166.85,166.81,7.349e-05]
[1747729211285,5.9925,166.83,166.81,7.349e-05]
[1747729212086,5.9925,166.83,166.81,5.99307349]
[1747729212487,5.9926,166.82,166.81,7.349e-05]
[1747729212986,5.9925,166.83,166.81,7.349e-05]
[1747729213382,0.04027292,166.85,166.81,7.349e-05]
[1747729214189,6.03197292,166.85,166.82,5.9925]
[1747729214386,0.04027292,166.85,166.81,7.349e-05]
[1747729215489,5.9926,166.82,166.81,7.349e-05]
[1747729215689,0.04027292,166.85,166.81,5.99297349]
[1747729216285,5.9922,166.84,166.81,5.99297349]
[1747729216587,0.04027292,166.85,166.81,7.349e-05]
[1747729216890,5.9924,166.83,166.81,7.349e-05]
[1747729217086,0.04027292,166.85,166.81,7.349e-05]
[1747729217494,5.9926,166.82,166.81,7.349e-05]
[1747729234504,11.9926,166.82,166.81,7.349e-05]
[1747729236008,5.9926,166.82,166.81,7.349e-05]
[1747729238608,11.9926,166.82,166.81,7.349e-05]
[1747729244111,5.9926,166.82,166.81,7.349e-05]
[1747729245618,70.7526,166.82,166.81,7.349e-05]
[1747729246115,76.7526,166.82,166.81,7.349e-05]
[1747729251015,94.7526,166.82,166.81,7.349e-05]
[1747729251221,118.7696,166.82,166.81,7.349e-05]
[1747729251421,5.9992,166.64,166.6,64.66]
[1747729251719,5.9992,166.64,166.6,70.6604]
[1747729251916,64.66,166.69,166.6,64.66]
[1747729252109,5.999,166.65,166.6,64.66]
[1747729252316,5.999,166.65,166.61,6.0001]
[1747729252610,6.03830307,166.65,166.61,6.0427572]
[1747729252914,5.9993,166.64,166.61,0.0426572]
[1747729253524,0.03930307,166.65,166.61,6.0427572]
[1747729254120,5.9993,166.64,166.61,0.0426572]
[1747729254720,6.03820307,166.65,166.61,6.0425572]
[1747729255422,5.9991,166.64,166.61,6.0425572]
[1747729256721,5.9995,166.63,166.61,6.0425572]
[1747729257023,5.9995,166.63,166.61,0.0426572]
[1747729257626,5.9995,166.63,166.61,6.0427572]
[1747729257922,5.9998,166.62,166.61,0.0426572]
[1747729260620,5.9998,166.62,166.61,5.72e-05]
[1747729260813,76.71730307,166.65,166.52,64.7]
[1747729261017,64.68,166.65,166.52,64.7]
[1747729261225,64.7,166.66,166.58,6.0009]
[1747729261426,64.7,166.67,166.56,64.7]
[1747729261724,0.04622534,166.63,166.6,0.04618545]
[1747729262020,5.9999,166.62,166.6,0.04618545]
[1747729262425,0.04622534,166.63,166.6,0.04618545]
[1747729262623,0.04622534,166.63,166.6,6.04668545]
[1747729263031,6.0,166.62,166.6,0.04618545]
[1747729263517,0.04622534,166.63,166.6,0.04618545]
[1747729263713,6.04582534,166.63,166.6,6.04638545]
[1747729264124,0.04622534,166.63,166.6,0.04618545]
[1747729264325,0.04622534,166.63,166.6,64.74618545]
[1747729264630,0.04622534,166.63,166.61,6.0002]
[1747729264825,0.04622534,166.63,166.6,64.74618545]
[1747729265326,0.04622534,166.63,166.62,5.9998]
[1747729265926,0.04622534,166.63,166.61,6.0]
[1747729267530,0.04622534,166.63,166.62,5.9998]
[1747729267830,518.34,166.75,166.6,64.74618545]
[1747729268129,5.9978,166.68,166.65,5.9985]
[1747729268329,64.7,166.74,166.6,64.7]
[1747729268726,5.9976,166.69,166.65,5.9985]
[1747729268927,0.03888209,166.69,166.65,0.03838454]
[1747729269325,5.9978,166.68,166.65,6.03708454]
[1747729269627,0.03888209,166.69,166.65,0.03838454]
[1747729270522,5.9982,166.67,166.65,0.03838454]
[1747729271122,5.9978,166.68,166.65,0.03838454]
[1747729271419,0.03888209,166.69,166.65,0.03838454]
[1747729271627,5.9979,166.68,166.65,6.03708454]
[1747729271831,0.03888209,166.69,166.65,0.03838454]
[1747729272231,5.9984,166.66,166.65,0.03838454]
[1747729272629,0.03888209,166.69,166.65,0.03838454]
[1747729273229,5.9984,166.66,166.65,0.03838454]
[1747729274130,5.9982,166.67,166.65,0.03838454]
[1747729274333,0.03888209,166.69,166.65,0.03838454]
[1747729275430,0.03888209,166.69,166.68,5.9976]
[1747729276225,64.7,166.79,166.68,70.7]
[1747729276421,5.9954,166.75,166.68,64.7]
[1747729276827,5.9954,166.75,166.71,5.9962]
[1747729277030,64.7,166.79,166.68,64.7]
[1747729277222,0.04488339,166.75,166.72,0.0411798]
[1747729277426,0.04276012,166.75,166.73,5.9958]
[1747729277628,0.04276012,166.75,166.73,70.6758]
[1747729278533,0.04276012,166.75,166.74,5.9955]
[1747729279836,64.56,166.85,166.75,5.995]
[1747729280341,5.9939,166.79,166.75,5.995]
[1747729280837,5.9939,166.79,166.75,6.04080376]
[1747729281137,6.03703913,166.79,166.75,6.04080376]
[1747729281346,6.03703913,166.79,166.76,5.9947]
[1747729281347,0.04313913,166.79,166.76,5.9947]
[1747729281543,0.04313913,166.79,166.77,64.56]
[1747729281843,6.03683913,166.79,166.77,64.56]
[1747729283545,0.04313913,166.79,166.77,70.5543]
[1747729283942,0.04313913,166.79,166.77,64.56]
[1747729284445,6.03683913,166.79,166.77,64.56]
[1747729285044,0.04313913,166.79,166.77,70.5544]
[1747729286447,6.03683913,166.79,166.77,70.5544]
[1747729287151,0.04313913,166.79,166.78,5.994]
[1747729293053,3.913e-05,166.79,166.78,5.994]
[1747729293452,3.913e-05,166.79,166.78,11.994]
[1747729294451,3.913e-05,166.79,166.78,5.994]
[1747729298156,3.913e-05,166.79,166.78,11.994]
[1747729298458,3.913e-05,166.79,166.78,5.994]
[1747729298850,3.913e-05,166.79,166.78,11.994]
[1747729299246,3.913e-05,166.79,166.78,5.994]
[1747729331392,64.4,166.94,166.89,5.9901]
[1747729331871,5.9892,166.92,166.89,5.9901]
[1747729332286,6.02840518,166.92,166.89,6.03408036]
[1747729332683,6.02840518,166.92,166.89,0.04398036]
[1747729332884,5.9897,166.9,166.89,0.04398036]
[1747729335586,0.03920518,166.92,166.89,0.04398036]
[1747729336181,0.03920518,166.92,166.9,5.9897]
[1747729343388,6.02830518,166.92,166.89,6.03388036]
[1747729345494,0.03920518,166.92,166.9,5.9897]
[1747729345895,0.03920518,166.92,166.91,64.26]
[1747729346191,0.03920518,166.92,166.91,70.2494]
[1747729349992,76.231,167.02,166.94,5.988]
[1747729350297,64.26,167.02,166.91,64.26]
[1747729350490,64.24,167.05,166.92,64.24]
[1747729350688,5.9866,166.99,166.96,5.9874]
[1747729351194,6.02706126,166.99,166.96,6.03204708]
[1747729351498,0.04046126,166.99,166.97,70.2272]
[1747729352494,0.04046126,166.99,166.97,64.24]
[1747729353086,0.04046126,166.99,166.98,5.9869]
[1747729355292,0.04046126,166.99,166.96,0.04464708]
[1747729355997,6.02706126,166.99,166.96,0.04464708]
[1747729356290,0.04046126,166.99,166.96,0.04464708]
[1747729356490,5.9872,166.97,166.96,0.04464708]
[1747729360802,0.04046126,166.99,166.96,0.04464708]
[1747729361804,6.02706126,166.99,166.96,6.03194708]
[1747729363107,5.9869,166.98,166.96,0.04464708]
[1747729364310,5.9872,166.97,166.96,0.04464708]
[1747729365409,0.04046126,166.99,166.96,0.04464708]
[1747729365611,0.04046126,166.99,166.96,64.26464708]
[1747729366208,0.04046126,166.99,166.97,5.9869]
[1747729368504,0.04046126,166.99,166.96,64.26464708]
[1747729369013,5.9872,166.97,166.96,64.26464708]
[1747729369209,5.9872,166.97,166.96,0.04464708]
[1747729375318,5.9869,166.98,166.96,0.04464708]
[1747729375509,0.04046126,166.99,166.96,0.04464708]
[1747729376014,5.9872,166.97,166.96,0.04464708]
[1747729390333,5.9893,166.92,166.9,64.1]
[1747729390928,76.0694,167.05,166.9,64.1]
[1747729391429,5.9872,166.97,166.96,0.04472994]
[1747729392332,0.04532594,166.99,166.9,64.12]
[1747729392527,76.0926,167.0,166.9,64.12]
[1747729393336,0.04259075,166.97,166.93,0.04082928]
[1747729393533,5.9883,166.94,166.93,0.04082928]
[1747729395534,5.9876,166.96,166.93,0.04082928]
[1747729396032,5.9876,166.96,166.93,6.02922928]
[1747729398435,5.9882,166.95,166.93,0.04082928]
[1747729398732,0.04259075,166.97,166.93,0.04082928]
[1747729398929,5.9882,166.95,166.93,0.04082928]
[1747729400335,5.9882,166.95,166.93,6.02942928]
[1747729401130,5.9877,166.96,166.93,0.04082928]
[1747729401335,5.9877,166.96,166.94,5.9882]
[1747729401541,0.04259075,166.97,166.93,0.04082928]
[1747729401733,0.04259075,166.97,166.95,5.9877]
[1747729401929,0.04259075,166.97,166.94,63.98]
[1747729402540,0.04259075,166.97,166.95,5.9876]
[1747729403333,0.04259075,166.97,166.96,5.9876]
[1747729405745,0.04259075,166.97,166.95,5.9877]
[1747729407244,0.04259075,166.97,166.94,63.98]
[1747729407453,0.04259075,166.97,166.93,0.04082928]
[1747729407946,5.9883,166.94,166.93,0.04082928]
[1747729411852,5.9883,166.94,166.93,2.928e-05]
[1747729413949,6.0,166.94,166.85,63.98]
[1747729414147,63.98,166.93,166.77,517.66]
[1747729414455,5.9914,166.86,166.83,5.9922]
[1747729414753,63.98,166.93,166.83,5.9922]
[1747729414952,63.98,166.93,166.83,0.04191269]
[1747729415158,0.0382985,166.9,166.83,0.04191269]
[1747729415454,5.9919,166.84,166.83,0.04191269]
[1747729416653,6.03719296,166.85,166.83,0.04191269]
[1747729416855,0.04549296,166.85,166.83,0.04191269]
[1747729417048,0.04549296,166.85,166.84,5.9919]
[1747729417253,64.0,166.95,166.83,0.04191269]
[1747729417456,64.0,166.95,166.82,63.98]
[1747729417951,5.9896,166.91,166.88,5.9904]
[1747729418158,64.0,166.95,166.88,5.9904]
[1747729418352,0.04532616,166.91,166.88,6.02966309]
[1747729418553,0.04532616,166.91,166.88,0.03926309]
[1747729418957,0.04532616,166.91,166.89,5.9901]
[1747729419456,0.04532616,166.91,166.88,0.03926309]
[1747729420556,0.04532616,166.91,166.89,5.9898]
[1747729421457,0.04532616,166.91,166.88,0.03926309]
[1747729421855,5.9901,166.89,166.88,0.03926309]
[1747729422757,5.9901,166.9,166.88,0.03926309]
[1747729422959,0.04532616,166.91,166.88,0.03926309]
[1747729424059,0.04532616,166.91,166.9,5.9897]
[1747729424660,0.04532616,166.91,166.89,5.99]
[1747729424961,0.04532616,166.91,166.88,0.03926309]
[1747729425964,5.9899,166.9,166.88,0.03926309]
[1747729426759,6.03482616,166.91,166.88,0.03926309]
[1747729426956,0.04532616,166.91,166.88,0.03926309]
[1747729427463,0.04532616,166.91,166.89,5.9901]
[1747729428564,6.03472616,166.91,166.89,5.9901]
[1747729429358,0.04532616,166.91,166.89,5.9901]
[1747729429557,0.04532616,166.91,166.9,5.9897]
[1747729430256,0.04532616,166.91,166.9,69.9897]
[1747729443473,0.04532616,166.91,166.9,64.0]
[1747729444177,0.04532616,166.91,166.9,69.9897]
[1747729444368,63.86,167.01,166.9,64.0]
[1747729444772,5.9873,166.97,166.9,64.0]
[1747729445073,63.86,167.04,166.9,64.0]
[1747729445374,0.04477976,166.98,166.95,6.03024881]
[1747729445569,0.04477976,166.98,166.95,0.04254881]
[1747729445769,5.9874,166.97,166.95,0.04254881]
[1747729446773,5.9876,166.96,166.95,0.04254881]
[1747729449280,0.04477976,166.98,166.85,517.7]
[1747729449479,11.9731,166.99,166.86,63.86]
[1747729449681,11.9731,166.99,166.88,5.9902]
[1747729449876,5.9897,166.91,166.88,5.9902]
[1747729450179,11.9731,166.99,166.87,5.9908]
[1747729450379,0.04338959,166.95,166.91,0.04309547]
[1747729450675,5.989,166.92,166.91,0.04309547]
[1747729452979,63.86,166.92,166.84,5.9916]
[1747729453581,5.991,166.87,166.84,5.9916]
[1747729453880,63.86,166.92,166.85,5.9915]
[1747729454081,5.9907,166.88,166.85,5.9915]
[1747729454277,5.9907,166.88,166.87,0.04257681]
[1747729457487,0.04227749,166.9,166.87,0.04257681]
[1747729458190,0.04227749,166.9,166.88,5.9902]
[1747729458495,0.04227749,166.9,166.87,0.04257681]
[1747729458693,0.04227749,166.9,166.89,5.9901]
[1747729459995,0.04227749,166.9,166.88,5.9903]
[1747729460992,0.04227749,166.9,166.87,6.03327681]
[1747729461194,0.04227749,166.9,166.87,0.04257681]
[1747729461598,5.9904,166.88,166.87,0.04257681]
[1747729462397,5.9902,166.89,166.87,0.04257681]
[1747729462597,0.04227749,166.9,166.87,0.04257681]
[1747729464599,0.04227749,166.9,166.89,5.9901]
[1747729466001,63.74,167.01,166.94,5.9882]
[1747729466892,5.9874,166.97,166.94,5.9882]
[1747729467099,6.03166493,166.97,166.94,6.02889326]
[1747729467293,0.04426493,166.97,166.94,0.04069326]
[1747729468100,0.04426493,166.97,166.96,5.9876]
[1747729468601,0.04426493,166.97,166.94,0.04069326]
[1747729468602,0.04426493,166.97,166.95,5.9878]
[1747729468801,0.04426493,166.97,166.94,0.04069326]
[1747729469693,5.9879,166.95,166.94,0.04069326]
[1747729481204,5.9879,166.95,166.94,9.326e-05]
[1747729481409,5.9879,166.95,166.86,63.72]
[1747729481410,63.72,166.95,166.86,63.72]
[1747729481803,63.72,166.95,166.86,69.711]
[1747729482002,63.72,166.95,166.86,63.72]
[1747729482302,63.72,166.95,166.89,0.03820488]
[1747729482509,0.04587678,166.92,166.89,0.03820488]
[1747729483608,5.9897,166.9,166.89,0.03820488]
[1747729484311,0.04587678,166.92,166.89,6.02810488]
[1747729484512,0.04587678,166.92,166.89,0.03820488]
[1747729484905,0.04587678,166.92,166.91,5.9894]
[1747729485300,0.04587678,166.92,166.89,0.03820488]
[1747729485505,0.04587678,166.92,166.9,5.9895]
[1747729486111,6.03487678,166.92,166.89,6.02820488]
[1747729486511,0.04587678,166.92,166.89,0.03820488]
[1747729486911,0.04587678,166.92,166.9,5.9895]
[1747729487814,0.04587678,166.92,166.91,5.9894]
[1747729492405,7.678e-05,166.92,166.91,5.9894]
[1747729496720,109.67801039,167.01,166.96,5.9874]
[1747729497217,5.9867,166.99,166.96,5.9874]
[1747729497719,6.02529998,166.99,166.96,0.04202704]
[1747729497922,5.9869,166.98,166.96,0.04202704]
[1747729498219,0.03859998,166.99,166.96,0.04202704]
[1747729499122,5.9872,166.97,166.96,0.04202704]
[1747729502623,0.03859998,166.99,166.96,0.04202704]
[1747729503426,6.02549998,166.99,166.96,6.02932704]
[1747729504125,0.03859998,166.99,166.96,0.04202704]
[1747729504625,5.9872,166.97,166.96,0.04202704]
[1747729506321,5.987,166.98,166.96,0.04202704]
[1747729506527,0.03859998,166.99,166.96,0.04202704]
[1747729508627,5.9869,166.98,166.96,0.04202704]
[1747729509025,0.03859998,166.99,166.96,0.04202704]
[1747729510222,6.02529998,166.99,166.96,0.04202704]
[1747729510930,6.02529998,166.99,166.97,5.987]
[1747729513031,0.03859998,166.99,166.96,0.04202704]
[1747729514632,0.03859998,166.99,166.98,5.9869]
[1747729515533,0.03859998,166.99,166.97,5.987]
[1747729516436,0.03859998,166.99,166.98,5.9869]
[1747729516932,63.58,167.07,166.98,63.58]
[1747729517328,5.9852,167.03,166.98,63.58]
[1747729517528,5.9852,167.03,167.0,5.9859]
[1747729517932,6.03099845,167.03,167.0,6.02675904]
[1747729518233,5.9854,167.02,167.0,6.02675904]
[1747729519328,5.9854,167.02,167.0,0.04085904]
[1747729520036,5.9858,167.01,167.0,0.04085904]
[1747729532752,63.44,167.02,166.92,63.44]
[1747729532947,63.44,167.02,166.9,63.44]
[1747729533254,5.989,166.93,166.9,69.4295]
[1747729533445,5.989,166.93,166.9,63.44]
[1747729533751,6.02978233,166.93,166.9,63.48500743]
[1747729534154,0.04078233,166.93,166.9,63.48500743]
[1747729534754,0.04078233,166.93,166.9,0.04500743]
[1747729536158,6.02948233,166.93,166.9,0.04500743]
[1747729536555,0.04078233,166.93,166.9,0.04500743]
[1747729537159,5.9894,166.91,166.9,0.04500743]
[1747729539163,0.04078233,166.93,166.9,0.04500743]
[1747729539666,5.9891,166.92,166.9,0.04500743]
[1747729541459,5.9894,166.91,166.9,0.04500743]
[1747729541764,0.04078233,166.93,166.9,0.04500743]
[1747729542162,6.02948233,166.93,166.9,0.04500743]
[1747729542364,0.04078233,166.93,166.9,0.04500743]
[1747729542771,5.9892,166.92,166.9,0.04500743]
[1747729543968,5.9894,166.91,166.9,0.04500743]
[1747729555268,5.9917,166.85,166.82,63.34]
[1747729555473,11.9775,166.93,166.82,63.34]
[1747729555766,11.9775,166.93,166.83,5.992]
[1747729556279,0.04283055,166.9,166.86,0.04330488]
[1747729556577,63.38283055,166.9,166.86,0.04330488]
[1747729557276,5.9908,166.87,166.86,0.04330488]
[1747729562780,5.9908,166.87,166.86,4.88e-06]
[1747729563079,11.9805,166.89,166.75,63.34]
[1747729563280,63.34,166.88,166.77,5.9941]
[1747729563480,63.34,166.88,166.75,63.34]
[1747729563879,0.04046273,166.83,166.8,0.03989104]
[1747729564681,5.993,166.81,166.8,0.03989104]
[1747729582289,5.993,166.81,166.8,9.104e-05]
[1747729601720,69.233,166.81,166.8,9.104e-05]
[1747729604019,5.993,166.81,166.8,9.104e-05]
[1747729611727,5.9949,166.76,166.72,63.36]
[1747729611931,63.24,166.79,166.67,518.12]
[1747729612128,63.24,166.78,166.65,63.24]
[1747729612428,63.24,166.78,166.67,5.9978]
[1747729612927,0.04333187,166.74,166.71,0.04062517]
[1747729614630,5.9962,166.72,166.71,0.04062517]
[1747729618426,63.28333187,166.74,166.65,63.24]
[1747729618627,63.24,166.74,166.62,63.1]
[1747729619329,63.24,166.74,166.63,5.9992]
[1747729619530,0.03886208,166.7,166.67,0.04556126]
[1747729619925,5.9976,166.68,166.67,0.04556126]
[1747729623936,5.9976,166.68,166.67,6.126e-05]
[1747729633343,0.03886208,166.7,166.67,6.126e-05]
[1747729633945,6.03586208,166.7,166.67,6.126e-05]
[1747729634147,1.04427673,166.87,166.68,63.14]
[1747729634444,63.14,167.07,166.7,18.0]
[1747729634644,63.14,167.06,166.72,18.0]
[1747729634843,63.14,167.06,166.73,63.14]
[1747729635150,0.04298023,166.91,166.88,0.04015346]
[1747729635450,63.1808663,166.91,166.8,63.14]
[1747729635655,5.9903,166.89,166.81,5.9928]
[1747729635947,63.14,166.91,166.81,5.9928]
[1747729636148,63.14,166.91,166.8,63.14]
[1747729636350,0.04039625,166.87,166.84,0.0282469]
[1747729640057,5.9912,166.86,166.84,0.0282469]
[1747729640858,6.03129625,166.87,166.84,0.0282469]
[1747729641050,0.04039625,166.87,166.84,0.0282469]
[1747729641652,0.04039625,166.87,166.84,63.1282469]
[1747729642757,5.9912,166.86,166.84,63.1282469]
[1747729643258,0.04039625,166.87,166.84,63.1282469]
[1747729643957,5.9915,166.85,166.84,63.1282469]
[1747729645354,5.9915,166.85,166.84,0.0282469]
[1747729647470,5.9913,166.86,166.84,0.0282469]
[1747729647771,0.04039625,166.87,166.85,62.96]
[1747729648269,6.03149625,166.87,166.85,62.96]
[1747729648467,0.04039625,166.87,166.85,62.96]
[1747729649271,6.03119625,166.87,166.85,62.96]
[1747729651171,5.9912,166.86,166.85,62.96]
[1747729662676,5.9915,166.85,166.84,0.0282469]
[1747729669180,5.9937,166.79,166.78,62.94]
[1747729670474,0.04059216,166.8,166.74,62.94]
[1747729671178,5.9951,166.75,166.74,62.94]
[1747729671576,0.04350774,166.76,166.71,580.82]
[1747729671775,5.9961,166.73,166.71,580.82]
[1747729673888,5.9956,166.74,166.71,580.82]
[1747729674382,0.04350774,166.76,166.71,580.82]
[1747729674884,0.04350774,166.76,166.71,586.8165]
[1747729675484,5.9957,166.74,166.71,586.8165]
[1747729676582,5.9952,166.75,166.72,5.9961]
[1747729676782,0.04350774,166.76,166.71,580.82]
[1747729677178,6.03850774,166.76,166.73,5.9956]
[1747729677685,0.04350774,166.76,166.71,580.82]
[1747729677982,6.03830774,166.76,166.71,580.82]
[1747729678377,0.04350774,166.76,166.71,580.82]
[1747729678786,0.04350774,166.76,166.75,5.9951]
[1747729678978,0.04350774,166.76,166.75,68.8751]
[1747729682983,7.74e-06,166.76,166.75,68.8751]
[1747729684280,62.88,166.86,166.75,68.8751]
[1747729684281,62.88,166.86,166.75,68.88]
[1747729684474,62.88,166.89,166.75,62.88]
[1747729684674,62.88,166.9,166.75,62.88]
[1747729685182,6.03330791,166.84,166.81,6.0310866]
[1747729685385,6.03330791,166.84,166.81,0.0383866]
[1747729685785,6.03330791,166.84,166.82,5.9926]
[1747729687283,0.04140791,166.84,166.81,0.0383866]
[1747729687991,5.9926,166.82,166.81,0.0383866]
[1747729689184,0.04140791,166.84,166.74,62.86]
[1747729689385,11.9838,166.84,166.74,62.86]
[1747729690286,0.03869687,166.81,166.74,62.86]
[1747729690487,62.89869687,166.81,166.74,62.86]
[1747729690688,5.9948,166.76,166.74,62.86]
[1747729691286,5.9951,166.75,166.74,62.86]
[1747729694187,0.04602175,166.77,166.71,580.76]
[1747729694392,62.92602175,166.77,166.63,518.08]
[1747729694585,0.04384362,166.72,166.64,62.88]
[1747729695294,5.9966,166.71,166.65,5.9986]
[1747729695588,5.9966,166.71,166.64,62.88]
[1747729695781,6.04014362,166.72,166.67,5.9978]
[1747729695986,0.04384362,166.72,166.64,62.88]
[1747729697898,0.04384362,166.72,166.71,5.9965]
[1747729698095,0.04384362,166.72,166.71,68.8765]
[1747729702500,0.04384362,166.72,166.71,62.88]
[1747729702700,5.9967,166.71,166.68,62.88]
[1747729703000,0.04384362,166.72,166.68,62.88]
[1747729704202,0.04384362,166.72,166.66,5.9981]
[1747729704698,5.9973,166.69,166.66,5.9981]
[1747729705102,5.9976,166.68,166.66,5.9981]
[1747729705296,5.9976,166.68,166.65,68.8785]
[1747729705501,0.04092972,166.68,166.65,62.88]
[1747729705696,5.9982,166.67,166.65,68.8787]
[1747729706002,0.04092972,166.68,166.65,68.8787]
[1747729706201,0.04092972,166.68,166.65,62.88]
[1747729706501,6.03852972,166.68,166.66,5.9983]
[1747729707100,0.04092972,166.68,166.65,62.88]
[1747729709104,0.04092972,166.68,166.66,5.9981]
[1747729709301,0.04092972,166.68,166.65,62.88]
[1747729709700,0.04092972,166.68,166.67,5.998]
[1747729710397,0.04092972,166.68,166.66,5.9983]
[1747729710600,0.04092972,166.68,166.65,62.88]
[1747729711203,0.04092972,166.68,166.66,5.9983]
[1747729712009,0.04092972,166.68,166.67,5.998]
[1747729718525,2.972e-05,166.68,166.67,5.998]
[1747729724334,2.972e-05,166.68,166.66,6.04277481]
[1747729725932,2.972e-05,166.68,166.66,0.04467481]
[1747729727029,5.99782972,166.68,166.66,0.04467481]
[1747729727424,2.972e-05,166.68,166.66,0.04467481]
[1747729728130,2.972e-05,166.68,166.67,5.998]
[1747729728333,2.972e-05,166.68,166.66,0.04467481]
[1747729729836,5.998,166.67,166.66,0.04467481]
[1747729733636,2.972e-05,166.68,166.66,0.04467481]
[1747729734640,2.972e-05,166.68,166.67,5.998]
[1747729743739,62.74,166.79,166.74,5.9954]
[1747729744035,5.9947,166.77,166.74,5.9954]
[1747729744546,5.9948,166.76,166.73,5.9957]
[1747729744746,6.03619824,166.76,166.73,5.9957]
[1747729745747,6.03619824,166.76,166.72,0.03785684]
[1747729745947,0.04139824,166.76,166.75,5.9951]
[1747729753852,0.04139824,166.76,166.75,68.7151]
[1747729763161,0.04139824,166.76,166.72,62.75785684]
[1747729763352,0.04139824,166.76,166.72,0.03785684]
[1747729764560,5.9958,166.73,166.72,0.03785684]
[1747729767963,0.04139824,166.76,166.72,0.03785684]
[1747729768266,0.04139824,166.76,166.73,5.9958]
[1747729768462,0.04139824,166.76,166.72,0.03785684]
[1747729768758,0.04139824,166.76,166.74,5.9954]
[1747729769165,6.03619824,166.76,166.74,5.9954]
[1747729772064,6.03619824,166.76,166.73,5.9957]
[1747729772263,5.9952,166.75,166.73,5.9957]
[1747729772768,6.03629824,166.76,166.73,5.9957]
[1747729773065,6.03629824,166.76,166.72,0.03785684]
[1747729773667,0.04139824,166.76,166.72,0.03785684]
[1747729773967,0.04139824,166.76,166.73,62.62]
[1747729774370,0.04139824,166.76,166.74,5.9952]
[1747729774967,0.04139824,166.76,166.73,62.62]
[1747729774968,0.04139824,166.76,166.75,5.9951]
[1747729781970,0.04139824,166.76,166.73,62.62]
[1747729782983,6.03629824,166.76,166.73,68.6156]
[1747729784687,5.9952,166.75,166.73,68.6156]
[1747729786186,6.03629824,166.76,166.73,68.6156]
[1747729787578,6.03629824,166.76,166.74,5.9955]
[1747729787784,0.04139824,166.76,166.74,5.9955]
[1747729789088,0.04139824,166.76,166.72,0.03785684]
[1747729789283,62.62,166.75,166.61,3.09051628]
[1747729789689,62.62,166.75,166.65,5.9984]
[1747729789889,62.62,166.75,166.64,62.62]
[1747729790185,5.9975,166.69,166.66,5.9983]
[1747729790388,0.03951194,166.71,166.64,62.62]
[1747729790591,6.03631194,166.71,166.66,5.9981]
[1747729790780,0.03951194,166.71,166.66,5.9981]
[1747729791085,5.9973,166.69,166.66,5.9981]
[1747729793078,0.03951194,166.71,166.64,62.62]
[1747729794388,0.03951194,166.71,166.68,5.9973]
[1747729794891,5.997,166.7,166.68,5.9973]
[1747729795096,0.03951194,166.71,166.64,62.62]
[1747729795493,5.9975,166.69,166.64,62.62]
[1747729795790,5.9975,166.69,166.67,5.998]
[1747729796090,5.9975,166.69,166.64,62.62]
[1747729796793,5.997,166.7,166.64,62.62]
[1747729796996,0.03951194,166.71,166.64,62.62]
[1747729797293,0.03951194,166.71,166.7,5.9969]
[1747729797797,0.03951194,166.71,166.69,5.9971]
[1747729798490,0.03951194,166.71,166.7,5.9969]